[Event "FRA-ch Youth 2017"]
[Site "Belfort"]
[Date "2017.04.23"]
[Round "9"]
[White "Parlas, Helin"]
[Black "Haussernot, Cecile"]
[Result "0-1"]
[ECO "E26"]
[WhiteElo "1606"]
[BlackElo "2107"]
[Annotator "NA RC"]
[PlyCount "54"]
[EventDate "2017.??.??"]
[EventCountry "FRA"]
[SourceTitle "playchess.com"]
[Source "ChessBase"]
[SourceQuality "1"]
[TimeControl "5400+30"]

{[%evp 8,54,-1,0,11,-4,32767,32767,18,32767,20,1,29,-7,-2,-2,-5,-65,-49,-47,-31,-41,-43,-37,-21,-43,0,32767,32767,32767,32767,32767,32767,32767,-431,32767,-399,-659,32767,-769,-751,32767,32767,-735,-742,32767,32767,-1012,-1079]} 1. d4 {[%emt 0:12:41]} Nf6 {[%emt 0:00:08]} 2. c4 {[%emt 0:00:06]} e6 {[%emt 0:00:09]} 3. Nc3 {[%emt 0:00:10]} Bb4 {[%emt 0:00:11]} 4. a3 {[%emt 0:01:18]} Bxc3+ $1 {[%emt 0:00:19]} 5. bxc3 {[%emt 0:00:08]} c5 {[%emt 0:01:04]} 6. e3 {[%emt 0:04:32] LiveBook: 494 Games} O-O {[%emt 0:11:47]} 7. Nf3 {[%emt 0:00:25]} Qa5 {[%emt 0:00:46] E24: Nimzo-Indian: Sämisch: Unusual Black 5th moves and 5...c5 sidelines} 8. Qc2 {[%emt 0:03:47]} d5 {[%emt 0:07:00]} 9. Bd2 {[%emt 0:03:12]} (9. Nd2 cxd4 10. cxd4 Bd7 11. Bd3 dxc4 12. Bxc4 Rc8 13. Qd3 Ba4 14. O-O Nbd7 15. Qe2 Rc7 16. Bd3 {0-1 (51) Tin,J (2439)-Indjic,A (2548) Baku 2016}) 9... Bd7 {[%emt 0:09:25]} 10. Bd3 $146 {[%emt 0:03:42]} (10. Qb2 Bc6 11. cxd5 exd5 12. Be2 Nbd7 13. O-O Rfe8 14. Rfd1 Rac8 15. h3 Ne4 16. c4 Nxd2 17. Nxd2 {0-1 (56) Tran,T (1921)-Doan,T (1946) Vietnam 2016}) 10... b5 {[%emt 0:04:07]} 11. cxd5 {[%emt 0:03:08]} c4 {[%emt 0:01:34]} 12. Be4 {[%emt 0:01:01]} (12. Be2 $11) 12... exd5 {[%emt 0:06:33]} 13. Bf5 {[%emt 0:00:42]} Bxf5 {[%emt 0:02:05]} 14. Qxf5 {[%emt 0:00:09]} Nc6 {[%emt 0:00:19]} 15. O-O {[%emt 0:04:59]} Ne7 {[%emt 0:00:49]} 16. Qc2 {[%emt 0:01:41]} Ne4 {[%emt 0:02:36]} 17. Ne5 {[%emt 0:00:29]} f6 {[%emt 0:00:27]} 18. Ng4 {[%emt 0:01:09]} h5 {[%emt 0:00:39]} 19. Be1 {[%emt 0:01:51]} hxg4 {[%emt 0:00:22]} 20. f3 {[%emt 0:00:07]} gxf3 {[%emt 0:03:22]} 21. gxf3 {[%emt 0:00:04]} Nf5 {[%emt 0:02:11]} 22. Bf2 {[%emt 0:01:21]} (22. fxe4 $142 Nxe3 23. Qe2 Nxf1 24. exd5) 22... Qxc3 {[%emt 0:00:23]} 23. Qxc3 {[%emt 0:00:37]} Nxc3 {[%emt 0:00:08]} 24. Rfe1 {[%emt 0:00:29]} Rfd8 {[%emt 0:06:22]} 25. Rac1 {[%emt 0:00:20]} Na4 {[%emt 0:00:17]} 26. Rcd1 {[%emt 0:00:05]} Nb2 {[%emt 0:00:22]} 27. Rc1 {[%emt 0:01:15]} Nd3 $19 0-1